[Event "25th European Club Cup Women 2021"]
[Site "Struga"]
[Date "2021.09.20"]
[Round "3.15"]
[White "Djukic, Sandra"]
[Black "Bulmaga, Irina"]
[Result "0-1"]
[ECO "D55"]
[WhiteElo "2127"]
[BlackElo "2407"]
[Annotator "NA"]
[PlyCount "92"]
[EventDate "2021.09.18"]
[EventType "team-tourn"]
[EventCountry "MKD"]
[SourceTitle "playchess.com"]
[Source "ChessBase"]
[SourceQuality "1"]
[TimeControl "40/5400+30:1800+30"]

1. d4 {[%emt 0:00:25]} Nf6 {[%emt 0:00:08]} 2. c4 {[%emt 0:00:07]} e6 {[%emt 0:
00:06]} 3. Nf3 {[%emt 0:00:05]} d5 {[%emt 0:00:06]} 4. Nc3 {[%emt 0:00:10]} Be7
{[%emt 0:00:07]} 5. Bg5 {[%emt 0:02:10]} h6 {[%emt 0:00:13]} 6. Bxf6 {[%emt 0:
01:56]} Bxf6 {[%emt 0:00:08]} 7. cxd5 {[%emt 0:01:16]} exd5 {[%emt 0:00:07]} 8.
e3 {[%emt 0:00:03]} O-O {[%emt 0:00:25]} 9. Rc1 {[%emt 0:03:43]} c6 {[%emt 0:
00:21]} 10. Bd3 {[%emt 0:00:07]} Nd7 {[%emt 0:03:24]} 11. O-O {[%emt 0:03:26]}
Re8 {[%emt 0:11:14]} 12. Qc2 {[%emt 0:12:56]} Nb6 {[%emt 0:01:32]} 13. h3 {
[%emt 0:06:37]} Bd7 {[%emt 0:04:51]} 14. Ne2 {[%emt 0:05:54]} Nc8 {[%emt 0:08:
12]} 15. Ng3 {[%emt 0:02:18]} Nd6 {[%emt 0:00:27]} 16. Qb3 {[%emt 0:25:53]} g6
{[%emt 0:17:01]} 17. Rfe1 {[%emt 0:05:39]} Rb8 {[%emt 0:04:28]} 18. Qa3 {
[%emt 0:07:44]} Be7 {[%emt 0:09:51]} 19. Qc3 {[%emt 0:01:46]} a5 {[%emt 0:01:
15]} 20. Red1 {[%emt 0:05:26]} f5 {[%emt 0:11:36]} 21. Ne5 {[%emt 0:01:30]} Kh7
{[%emt 0:00:28]} 22. a4 {[%emt 0:09:42]} Ne4 {[%emt 0:02:38]} 23. Bxe4 {
[%emt 0:00:39]} fxe4 {[%emt 0:00:09]} 24. Nxd7 {[%emt 0:02:20]} Qxd7 {[%emt 0:
00:24]} 25. b3 {[%emt 0:00:32]} Bb4 {[%emt 0:00:57]} 26. Qc2 {[%emt 0:00:02]}
Rf8 {[%emt 0:00:41]} 27. Qe2 {[%emt 0:00:04]} Bd6 {[%emt 0:01:19]} 28. Nf1 {
[%emt 0:00:21]} Rf5 {[%emt 0:00:29]} 29. Rc2 {[%emt 0:01:28]} Rbf8 {[%emt 0:00:
19]} 30. Ra1 {[%emt 0:00:37]} Rg5 {[%emt 0:00:36]} 31. Kh1 {[%emt 0:00:08]} Rf3
{[%emt 0:02:41]} 32. Ng3 {[%emt 0:00:46]} Bxg3 {[%emt 0:01:17]} 33. fxg3 {
[%emt 0:01:10]} Rfxg3 {[%emt 0:01:02]} 34. Rf1 {[%emt 0:00:00]} Rxh3+ {[%emt 0:
00:20]} 35. Kg1 {[%emt 0:00:00]} Rhg3 {[%emt 0:01:41]} 36. Rf2 {[%emt 0:00:51]}
h5 {[%emt 0:06:03]} 37. Qf1 {[%emt 0:00:20]} Rf5 {[%emt 0:01:40]} 38. Rxf5 {
[%emt 0:00:32]} gxf5 {[%emt 0:00:46]} 39. Qe1 {[%emt 0:00:03]} Qg7 {[%emt 0:01:
57]} 40. Qxa5 {[%emt 0:00:00]} Rxe3 {[%emt 0:00:00]} 41. Qd8 {[%emt 0:02:42]}
Rg3 {[%emt 0:04:49]} 42. Kh2 {[%emt 0:01:24]} Rg4 {[%emt 0:02:47]} 43. b4 {
[%emt 0:05:10]} f4 {[%emt 0:01:41]} 44. Re2 {[%emt 0:01:02]} Qxd4 {[%emt 0:06:
27]} 45. Qd7+ {[%emt 0:00:55]} Qg7 {[%emt 0:00:18]} 46. Qf5+ {[%emt 0:00:07]}
Kh6 {[%emt 0:00:13]} 0-1

[Event "25th European Club Cup Women 2021"]
[Site "Struga"]
[Date "2021.09.20"]
[Round "3.16"]
[White "Stojkovska, Monika"]
[Black "Galunova, Tsveta"]
[Result "0-1"]
[ECO "C54"]
[WhiteElo "2081"]
[BlackElo "2190"]
[Annotator "NA"]
[PlyCount "72"]
[EventDate "2021.09.18"]
[EventType "team-tourn"]
[EventCountry "MKD"]
[SourceTitle "playchess.com"]
[Source "ChessBase"]
[SourceQuality "1"]
[TimeControl "40/5400+30:1800+30"]

1. e4 {[%emt 0:00:05]} e5 {[%emt 0:00:08]} 2. Nf3 {[%emt 0:00:04]} Nc6 {
[%emt 0:00:07]} 3. Bc4 {[%emt 0:00:14]} Bc5 {[%emt 0:00:08]} 4. O-O {[%emt 0:
00:15]} Nf6 {[%emt 0:00:15]} 5. d3 {[%emt 1:32:22]} a6 {[%emt 0:02:24]} 6. c3 {
[%emt 0:00:00]} Ba7 {[%emt 0:00:37]} 7. a4 {[%emt 0:00:00]} h6 {[%emt 0:01:25]}
8. Re1 {[%emt 0:00:00]} O-O {[%emt 0:00:35]} 9. Nbd2 {[%emt 0:00:00]} Ng4 {
[%emt 0:08:45]} 10. Re2 {[%emt 0:00:00]} d6 {[%emt 0:01:01]} 11. h3 {[%emt 0:
00:00]} Nf6 {[%emt 0:00:18]} 12. b4 {[%emt 0:00:00]} Nh5 {[%emt 0:08:41]} 13.
Nf1 {[%emt 0:00:00]} Qf6 {[%emt 0:01:14]} 14. N1h2 {[%emt 0:00:00]} Nf4 {
[%emt 0:05:20]} 15. Bxf4 {[%emt 0:00:00]} Qxf4 {[%emt 0:00:55]} 16. b5 {
[%emt 0:00:00]} Nd8 {[%emt 0:11:19]} 17. d4 {[%emt 0:00:00]} exd4 {[%emt 0:03:
31]} 18. cxd4 {[%emt 0:00:00]} Ne6 {[%emt 0:07:48]} 19. bxa6 {[%emt 0:00:00]}
bxa6 {[%emt 0:00:19]} 20. Rb1 {[%emt 0:00:00]} Bb6 {[%emt 0:06:29]} 21. Bd5 {
[%emt 0:00:00]} Ra7 {[%emt 0:01:27]} 22. Qd2 {[%emt 0:00:00]} Bd7 {[%emt 0:08:
07]} 23. Qb4 {[%emt 0:00:00]} a5 {[%emt 0:01:51]} 24. Qc4 {[%emt 0:00:00]} h5 {
[%emt 0:04:16]} 25. Reb2 {[%emt 0:00:00]} Bc8 {[%emt 0:11:53]} 26. g3 {[%emt 0:
06:43]} Qf6 {[%emt 0:02:36]} 27. e5 {[%emt 0:00:39]} dxe5 {[%emt 0:02:30]} 28.
dxe5 {[%emt 0:00:14]} Qf5 {[%emt 0:07:15]} 29. Qh4 {[%emt 0:00:52]} Bb7 {
[%emt 0:01:10]} 30. Bxb7 {[%emt 0:01:14]} Rxb7 {[%emt 0:00:01]} 31. Kg2 {
[%emt 0:00:59]} Rbb8 {[%emt 0:00:17]} 32. Nf1 {[%emt 0:00:55]} Rbd8 {[%emt 0:
00:58]} 33. Ne3 {[%emt 0:01:08]} Bxe3 {[%emt 0:00:55]} 34. fxe3 {[%emt 0:00:00]
} Rd3 {[%emt 0:00:02]} 35. Rb3 {[%emt 0:01:04]} Rxb3 {[%emt 0:00:52]} 36. Rf1 {
[%emt 0:01:07]} Rb2+ {[%emt 0:01:01]} 0-1

[Event "25th European Club Cup Women 2021"]
[Site "Struga"]
[Date "2021.09.21"]
[Round "4.1"]
[White "Bivol, Alina"]
[Black "Shuvalova, Polina"]
[Result "1/2-1/2"]
[ECO "C54"]
[WhiteElo "2385"]
[BlackElo "2510"]
[Annotator "ChessBase"]
[PlyCount "134"]
[EventDate "2021.09.18"]
[EventType "team-tourn"]
[EventCountry "MKD"]
[SourceTitle "playchess.com"]
[Source "ChessBase"]
[SourceQuality "1"]
[TimeControl "40/5400+30:1800+30"]

1. e4 {[%emt 0:00:20]} e5 {[%emt 0:00:03]} 2. Nf3 {[%emt 0:00:09]} Nc6 {
[%emt 0:00:05]} 3. Bc4 {[%emt 0:00:05]} Bc5 {[%emt 0:00:06]} 4. c3 {[%emt 0:00:
41]} Nf6 {[%emt 0:00:05]} 5. d4 {[%emt 0:00:37]} exd4 {[%emt 0:00:05]} 6. e5 {
[%emt 0:00:04]} d5 {[%emt 0:00:09]} 7. Bb5 {[%emt 0:00:04]} Ne4 {[%emt 0:00:15]
} 8. cxd4 {[%emt 0:00:10]} Bb6 {[%emt 0:00:20]} 9. Be3 {[%emt 0:00:47]} O-O {
[%emt 0:00:38]} 10. Nc3 {[%emt 0:00:07]} Bg4 {[%emt 0:00:12]} 11. h3 {[%emt 0:
00:12]} Bh5 {[%emt 0:00:09]} 12. Qc2 {[%emt 0:01:42]} Nxc3 {[%emt 0:00:08]} 13.
bxc3 {[%emt 0:00:16]} f6 {[%emt 0:00:02]} 14. exf6 {[%emt 0:00:08]} Qxf6 {
[%emt 0:00:14]} 15. Be2 {[%emt 0:00:04]} Na5 {[%emt 0:02:32]} 16. O-O {[%emt 0:
02:19]} Bxf3 {[%emt 0:00:11]} 17. Bxf3 {[%emt 0:00:06]} c6 {[%emt 0:00:03]} 18.
Rae1 {[%emt 0:00:15]} Nc4 {[%emt 0:02:37]} 19. Bc1 {[%emt 0:01:16]} Bc7 {
[%emt 0:04:56]} 20. Bg4 {[%emt 0:01:23]} Rae8 {[%emt 0:01:31]} 21. Re2 {
[%emt 0:10:02]} Nd6 {[%emt 0:05:14]} 22. f4 {[%emt 0:11:32]} Ne4 {[%emt 0:09:
30]} 23. Qd3 {[%emt 0:06:33]} Qh4 {[%emt 0:06:39]} 24. c4 {[%emt 0:03:37]} h5 {
[%emt 0:08:11]} 25. Bd7 {[%emt 0:05:32]} Rd8 {[%emt 0:02:52]} 26. Be6+ {
[%emt 0:08:02]} Kh8 {[%emt 0:00:08]} 27. Rf3 {[%emt 0:05:06]} Bxf4 {[%emt 0:09:
42]} 28. Bxf4 {[%emt 0:06:04]} Rxf4 {[%emt 0:00:11]} 29. cxd5 {[%emt 0:05:04]}
cxd5 {[%emt 0:07:30]} 30. Rxf4 {[%emt 0:05:29]} Qxf4 {[%emt 0:00:06]} 31. Bxd5
{[%emt 0:03:32]} Qc1+ {[%emt 0:15:12]} 32. Kh2 {[%emt 0:01:52]} Qc7+ {[%emt 0:
00:38]} 33. Kg1 {[%emt 0:04:30]} Qc1+ {[%emt 0:02:22]} 34. Kh2 {[%emt 0:00:01]}
Qf4+ {[%emt 0:01:04]} 35. Kg1 {[%emt 0:02:42]} Ng3 {[%emt 0:01:40]} 36. Re1 {
[%emt 0:03:14]} b6 {[%emt 0:06:34]} 37. a4 {[%emt 0:07:31]} h4 {[%emt 0:00:52]}
38. Bc6 {[%emt 0:00:24]} Qxd4+ {[%emt 0:08:25]} 39. Qxd4 {[%emt 0:00:05]} Rxd4
{[%emt 0:00:03]} 40. Kf2 {[%emt 0:00:00]} Rf4+ {[%emt 0:00:00]} 41. Ke3 {
[%emt 0:01:40]} g5 {[%emt 0:01:13]} 42. a5 {[%emt 0:09:39]} bxa5 {[%emt 0:02:
28]} 43. Kd3 {[%emt 0:02:27]} Kg7 {[%emt 0:03:30]} 44. Re7+ {[%emt 0:02:04]}
Rf7 {[%emt 0:00:05]} 45. Re5 {[%emt 0:00:12]} Rf5 {[%emt 0:01:07]} 46. Re7+ {
[%emt 0:00:18]} Kf6 {[%emt 0:00:16]} 47. Rxa7 {[%emt 0:00:09]} Rc5 {[%emt 0:00:
12]} 48. Bf3 {[%emt 0:00:50]} Ke5 {[%emt 0:04:34]} 49. Ra8 {[%emt 0:01:31]} Nf5
{[%emt 0:05:52]} 50. Re8+ {[%emt 0:00:56]} Kf4 {[%emt 0:03:29]} 51. Re4+ {
[%emt 0:01:58]} Kg3 {[%emt 0:00:03]} 52. Rg4+ {[%emt 0:00:05]} Kf2 {[%emt 0:05:
43]} 53. Rxg5 {[%emt 0:00:43]} a4 {[%emt 0:00:06]} 54. Rg4 {[%emt 0:00:31]} Ra5
{[%emt 0:00:21]} 55. Re4 {[%emt 0:03:10]} a3 {[%emt 0:04:33]} 56. Re2+ {
[%emt 0:00:24]} Kf1 {[%emt 0:00:28]} 57. Ra2 {[%emt 0:00:15]} Re5 {[%emt 0:00:
58]} 58. Be4 {[%emt 0:01:27]} Nd6 {[%emt 0:00:15]} 59. Bf3 {[%emt 0:00:35]} Ra5
{[%emt 0:00:32]} 60. Kc3 {[%emt 0:01:06]} Nf5 {[%emt 0:00:51]} 61. Kb4 {
[%emt 0:00:54]} Ra7 {[%emt 0:00:25]} 62. Kc3 {[%emt 0:02:25]} Kg1 {[%emt 0:01:
28]} 63. Kd3 {[%emt 0:01:30]} Re7 {[%emt 0:00:44]} 64. Be4 {[%emt 0:01:32]} Ng3
{[%emt 0:00:58]} 65. Ra1+ {[%emt 0:01:14]} Kf2 {[%emt 0:00:40]} 66. Ra2+ {
[%emt 0:00:19]} Kg1 {[%emt 0:00:03]} 67. Ra1+ {[%emt 0:00:05]} Kf2 {[%emt 0:00:
02]} 1/2-1/2

[Event "25th European Club Cup Women 2021"]
[Site "Struga"]
[Date "2021.09.21"]
[Round "4.2"]
[White "Atalik, Ekaterina"]
[Black "Heinemann, Josefine"]
[Result "1/2-1/2"]
[ECO "D02"]
[WhiteElo "2429"]
[BlackElo "2292"]
[Annotator "ChessBase"]
[PlyCount "147"]
[EventDate "2021.09.18"]
[EventType "team-tourn"]
[EventCountry "MKD"]
[SourceTitle "playchess.com"]
[Source "ChessBase"]
[SourceQuality "1"]
[TimeControl "40/5400+30:1800+30"]

1. d4 {[%emt 0:00:09]} Nf6 {[%emt 0:00:05]} 2. Nf3 {[%emt 0:00:22]} e6 {
[%emt 0:00:17]} 3. Bf4 {[%emt 0:02:03]} d5 {[%emt 0:00:10]} 4. e3 {[%emt 0:00:
43]} Bd6 {[%emt 0:00:08]} 5. Nbd2 {[%emt 0:00:18]} O-O {[%emt 0:00:37]} 6. Bd3
{[%emt 0:00:18]} b6 {[%emt 0:02:34]} 7. O-O {[%emt 0:00:46]} Bxf4 {[%emt 0:04:
33]} 8. exf4 {[%emt 0:00:05]} c5 {[%emt 0:00:12]} 9. c3 {[%emt 0:00:25]} Ba6 {
[%emt 0:01:23]} 10. Bxa6 {[%emt 0:05:27]} Nxa6 {[%emt 0:00:05]} 11. Qa4 {
[%emt 0:02:51]} Nb8 {[%emt 0:03:23]} 12. Ne5 {[%emt 0:02:33]} Qd6 {[%emt 0:06:
05]} 13. Ndf3 {[%emt 0:02:47]} Nfd7 {[%emt 0:03:32]} 14. Rfe1 {[%emt 0:02:54]}
f6 {[%emt 0:05:59]} 15. Nxd7 {[%emt 0:01:49]} Nxd7 {[%emt 0:00:06]} 16. Re2 {
[%emt 0:06:13]} Rf7 {[%emt 0:07:22]} 17. Rae1 {[%emt 0:03:00]} Nf8 {[%emt 0:02:
54]} 18. g3 {[%emt 0:02:25]} Rc7 {[%emt 0:05:28]} 19. Qc2 {[%emt 0:06:27]} g6 {
[%emt 0:02:41]} 20. Qd3 {[%emt 0:06:18]} a6 {[%emt 0:52:56]} 21. h4 {[%emt 0:
04:36]} h5 {[%emt 0:00:00]} 22. dxc5 {[%emt 0:06:31]} bxc5 {[%emt 0:00:00]} 23.
Rd1 {[%emt 0:00:49]} a5 {[%emt 0:00:00]} 24. Ne1 {[%emt 0:00:49]} Qa6 {[%emt 0:
00:00]} 25. Qf3 {[%emt 0:03:47]} Rb8 {[%emt 0:00:00]} 26. Rdd2 {[%emt 0:09:55]}
c4 {[%emt 0:00:00]} 27. Ng2 {[%emt 0:07:03]} Rb6 {[%emt 0:00:00]} 28. f5 {
[%emt 0:04:02]} gxf5 {[%emt 0:00:00]} 29. Nf4 {[%emt 0:00:52]} Rf7 {[%emt 0:00:
00]} 30. Qxh5 {[%emt 0:02:03]} Qb7 {[%emt 0:00:00]} 31. Qh6 {[%emt 0:08:38]}
Rd6 {[%emt 0:00:00]} 32. Ng6 {[%emt 0:02:48]} Nxg6 {[%emt 0:00:00]} 33. Qxg6+ {
[%emt 0:00:05]} Kf8 {[%emt 0:00:00]} 34. Qh6+ {[%emt 0:02:01]} Kg8 {[%emt 0:00:
00]} 35. Rd1 {[%emt 0:01:49]} Rb6 {[%emt 0:00:00]} 36. Rde1 {[%emt 0:01:13]}
Qd7 {[%emt 0:00:00]} 37. Qe3 {[%emt 0:01:04]} Rc6 {[%emt 0:00:11]} 38. Qh6 {
[%emt 0:01:13]} e5 {[%emt 0:01:28]} 39. Rd1 {[%emt 0:01:10]} Rg7 {[%emt 0:01:
56]} 40. Kh2 {[%emt 0:00:00]} f4 {[%emt 0:00:00]} 41. Qh5 {[%emt 0:03:17]}
fxg3+ {[%emt 0:06:39]} 42. fxg3 {[%emt 0:00:12]} Rd6 {[%emt 0:00:51]} 43. Red2
{[%emt 0:09:49]} Qe6 {[%emt 0:02:07]} 44. Qf3 {[%emt 0:02:30]} Rgd7 {[%emt 0:
00:29]} 45. Re1 {[%emt 0:04:00]} Rb6 {[%emt 0:07:14]} 46. g4 {[%emt 0:05:02]}
Rbd6 {[%emt 0:03:27]} 47. Qg3 {[%emt 0:05:29]} Rg7 {[%emt 0:01:44]} 48. Rg2 {
[%emt 0:01:58]} d4 {[%emt 0:02:20]} 49. cxd4 {[%emt 0:00:53]} Rxd4 {[%emt 0:00:
06]} 50. g5 {[%emt 0:01:15]} Rd3 {[%emt 0:01:16]} 51. Re3 {[%emt 0:02:01]} Rxe3
{[%emt 0:04:57]} 52. Qxe3 {[%emt 0:00:04]} fxg5 {[%emt 0:00:09]} 53. Rxg5 {
[%emt 0:01:00]} Rxg5 {[%emt 0:00:45]} 54. Qxg5+ {[%emt 0:00:04]} Kh7 {[%emt 0:
00:13]} 55. Kg3 {[%emt 0:00:40]} Qd5 {[%emt 0:01:07]} 56. Qf5+ {[%emt 0:00:49]}
Kh6 {[%emt 0:02:46]} 57. Qg5+ {[%emt 0:00:31]} Kh7 {[%emt 0:00:04]} 58. Qe3 {
[%emt 0:00:28]} a4 {[%emt 0:02:06]} 59. Kf2 {[%emt 0:00:43]} Qd4 {[%emt 0:01:
08]} 60. Kf3 {[%emt 0:00:26]} Qxb2 {[%emt 0:01:17]} 61. Qe4+ {[%emt 0:00:06]}
Kg7 {[%emt 0:00:34]} 62. Qxc4 {[%emt 0:00:08]} a3 {[%emt 0:00:53]} 63. Ke4 {
[%emt 0:00:42]} Kh6 {[%emt 0:01:03]} 64. Kf5 {[%emt 0:00:48]} Qf2+ {[%emt 0:01:
35]} 65. Kxe5 {[%emt 0:00:10]} Qg3+ {[%emt 0:00:36]} 66. Kd5 {[%emt 0:00:46]}
Kh5 {[%emt 0:00:42]} 67. Kc5 {[%emt 0:00:27]} Qc7+ {[%emt 0:00:47]} 68. Kb4 {
[%emt 0:00:20]} Qxc4+ {[%emt 0:00:08]} 69. Kxc4 {[%emt 0:00:12]} Kxh4 {[%emt 0:
00:01]} 70. Kb3 {[%emt 0:00:07]} Kg5 {[%emt 0:00:03]} 71. Kxa3 {[%emt 0:00:06]}
Kf6 {[%emt 0:00:02]} 72. Kb4 {[%emt 0:00:09]} Ke7 {[%emt 0:00:03]} 73. Kb5 {
[%emt 0:00:21]} Kd7 {[%emt 0:00:07]} 74. Kb6 {[%emt 0:03:36]} 1/2-1/2

[Event "25th European Club Cup Women 2021"]
[Site "Struga"]
[Date "2021.09.21"]
[Round "4.3"]
[White "Dordzhieva, Dinara"]
[Black "Bulmaga, Irina"]
[Result "1/2-1/2"]
[ECO "E04"]
[WhiteElo "2303"]
[BlackElo "2407"]
[Annotator "NA"]
[PlyCount "84"]
[EventDate "2021.09.18"]
[EventType "team-tourn"]
[EventCountry "MKD"]
[SourceTitle "playchess.com"]
[Source "ChessBase"]
[SourceQuality "1"]
[TimeControl "40/5400+30:1800+30"]

1. d4 {[%emt 0:00:03]} Nf6 {[%emt 0:00:07]} 2. c4 {[%emt 0:00:10]} e6 {[%emt 0:
00:07]} 3. Nf3 {[%emt 0:00:15]} d5 {[%emt 0:00:08]} 4. g3 {[%emt 0:00:06]} dxc4
{[%emt 0:00:20]} 5. Bg2 {[%emt 0:00:11]} a6 {[%emt 0:00:17]} 6. O-O {[%emt 0:
12:25]} Nc6 {[%emt 0:00:58]} 7. Be3 {[%emt 0:00:12]} Nd5 {[%emt 0:11:07]} 8.
Qc1 {[%emt 0:03:38]} Nxe3 {[%emt 0:03:48]} 9. fxe3 {[%emt 0:00:03]} Be7 {
[%emt 0:14:30]} 10. Nbd2 {[%emt 0:10:25]} O-O {[%emt 0:06:57]} 11. Nxc4 {
[%emt 0:00:16]} Rb8 {[%emt 0:11:02]} 12. a3 {[%emt 0:04:43]} f6 {[%emt 0:02:19]
} 13. Qc2 {[%emt 0:01:59]} Bd7 {[%emt 0:01:19]} 14. Ncd2 {[%emt 0:06:07]} Bd6 {
[%emt 0:02:01]} 15. Ne4 {[%emt 0:07:45]} Qe7 {[%emt 0:00:38]} 16. Rac1 {
[%emt 0:05:35]} e5 {[%emt 0:04:08]} 17. Nc5 {[%emt 0:03:44]} Bg4 {[%emt 0:10:
09]} 18. Nxb7 {[%emt 0:19:56]} Rxb7 {[%emt 0:01:38]} 19. Qxc6 {[%emt 0:00:05]}
Rxb2 {[%emt 0:02:13]} 20. dxe5 {[%emt 0:05:28]} Bxf3 {[%emt 0:04:52]} 21. exf3
{[%emt 0:04:37]} Qxe5 {[%emt 0:03:01]} 22. Qc3 {[%emt 0:01:05]} Qb5 {[%emt 0:
01:22]} 23. a4 {[%emt 0:02:21]} Qe2 {[%emt 0:02:12]} 24. Qc4+ {[%emt 0:00:06]}
Qxc4 {[%emt 0:00:05]} 25. Rxc4 {[%emt 0:00:04]} Rfb8 {[%emt 0:05:17]} 26. Rf2 {
[%emt 0:03:20]} Rxf2 {[%emt 0:00:34]} 27. Kxf2 {[%emt 0:00:04]} Rb2+ {[%emt 0:
00:08]} 28. Kg1 {[%emt 0:03:05]} Re2 {[%emt 0:01:20]} 29. Rc3 {[%emt 0:00:53]}
a5 {[%emt 0:00:45]} 30. Bf1 {[%emt 0:00:47]} Re1 {[%emt 0:00:03]} 31. Kf2 {
[%emt 0:00:51]} Ra1 {[%emt 0:00:03]} 32. Rc4 {[%emt 0:02:46]} Ra2+ {[%emt 0:00:
20]} 33. Be2 {[%emt 0:00:07]} Kf8 {[%emt 0:00:08]} 34. f4 {[%emt 0:00:56]} Ke7
{[%emt 0:00:47]} 35. Kf3 {[%emt 0:00:13]} Kd8 {[%emt 0:01:11]} 36. h4 {[%emt 0:
00:27]} c5 {[%emt 0:03:29]} 37. Re4 {[%emt 0:01:26]} f5 {[%emt 0:01:44]} 38.
Re6 {[%emt 0:01:10]} Kc7 {[%emt 0:04:26]} 39. Bb5 {[%emt 0:00:05]} Rc2 {
[%emt 0:01:22]} 40. e4 {[%emt 0:00:00]} Rc3+ {[%emt 0:00:00]} 41. Kg2 {[%emt 0:
01:54]} fxe4 {[%emt 0:06:57]} 42. Rxe4 {[%emt 0:00:06]} Rb3 {[%emt 0:01:57]}
1/2-1/2

[Event "25th European Club Cup Women 2021"]
[Site "Struga"]
[Date "2021.09.21"]
[Round "4.4"]
[White "Stojkovska, Monika"]
[Black "Trippold, Denise"]
[Result "0-1"]
[ECO "B48"]
[WhiteElo "2081"]
[BlackElo "2046"]
[Annotator "NA"]
[PlyCount "68"]
[EventDate "2021.09.18"]
[EventType "team-tourn"]
[EventCountry "MKD"]
[SourceTitle "playchess.com"]
[Source "ChessBase"]
[SourceQuality "1"]
[TimeControl "40/5400+30:1800+30"]

1. e4 {[%emt 0:00:04]} c5 {[%emt 0:00:11]} 2. Nf3 {[%emt 0:00:05]} e6 {[%emt 0:
00:12]} 3. d4 {[%emt 0:00:13]} cxd4 {[%emt 0:00:06]} 4. Nxd4 {[%emt 0:00:05]}
Nc6 {[%emt 0:00:12]} 5. Nc3 {[%emt 0:00:21]} Qc7 {[%emt 0:00:21]} 6. Be3 {
[%emt 0:00:36]} a6 {[%emt 0:00:11]} 7. Qd2 {[%emt 0:00:09]} Nf6 {[%emt 0:01:18]
} 8. f3 {[%emt 0:00:17]} b5 {[%emt 0:02:06]} 9. g4 {[%emt 0:01:58]} Nxd4 {
[%emt 0:10:31]} 10. Bxd4 {[%emt 0:02:28]} Bb7 {[%emt 0:01:19]} 11. O-O-O {
[%emt 0:01:10]} Be7 {[%emt 0:02:20]} 12. h4 {[%emt 0:02:08]} b4 {[%emt 0:08:50]
} 13. Ne2 {[%emt 0:06:32]} Rc8 {[%emt 0:07:28]} 14. Bg2 {[%emt 0:27:11]} O-O {
[%emt 0:10:22]} 15. g5 {[%emt 0:07:37]} Nh5 {[%emt 0:02:41]} 16. Kb1 {[%emt 0:
06:45]} e5 {[%emt 0:21:55]} 17. Be3 {[%emt 0:02:05]} d5 {[%emt 0:02:26]} 18.
Rc1 {[%emt 0:16:52]} Rcd8 {[%emt 0:07:53]} 19. Qe1 {[%emt 0:01:04]} a5 {
[%emt 0:03:00]} 20. Qf2 {[%emt 0:02:50]} d4 {[%emt 0:04:01]} 21. Bd2 {[%emt 0:
00:04]} Bd6 {[%emt 0:01:58]} 22. Bh3 {[%emt 0:07:14]} a4 {[%emt 0:00:46]} 23.
Bg4 {[%emt 0:01:30]} Nf4 {[%emt 0:00:11]} 24. h5 {[%emt 0:05:38]} Qe7 {[%emt 0:
10:04]} 25. Bxf4 {[%emt 0:04:44]} exf4 {[%emt 0:00:02]} 26. Qh4 {[%emt 0:00:51]
} Qe5 {[%emt 0:01:39]} 27. g6 {[%emt 0:01:01]} Ba6 {[%emt 0:00:21]} 28. gxh7+ {
[%emt 0:00:39]} Kh8 {[%emt 0:00:05]} 29. Ng1 {[%emt 0:00:59]} a3 {[%emt 0:00:
33]} 30. h6 {[%emt 0:01:42]} d3 {[%emt 0:01:30]} 31. hxg7+ {[%emt 0:00:03]}
Qxg7 {[%emt 0:00:06]} 32. c3 {[%emt 0:00:37]} d2 {[%emt 0:00:24]} 33. Nh3 {
[%emt 0:00:47]} dxc1=Q+ {[%emt 0:00:30]} 34. Rxc1 {[%emt 0:00:40]} Bd3+ {
[%emt 0:00:06]} 0-1

[Event "25th European Club Cup Women 2021"]
[Site "Struga"]
[Date "2021.09.21"]
[Round "4.5"]
[White "Muzychuk, Anna"]
[Black "Peycheva, Gergana"]
[Result "1-0"]
[ECO "B12"]
[WhiteElo "2534"]
[BlackElo "2331"]
[Annotator "ChessBase"]
[PlyCount "71"]
[EventDate "2021.09.18"]
[EventType "team-tourn"]
[EventCountry "MKD"]
[SourceTitle "playchess.com"]
[Source "ChessBase"]
[SourceQuality "1"]
[TimeControl "40/5400+30:1800+30"]

1. e4 {[%emt 0:00:03]} c6 {[%emt 0:00:17]} 2. d4 {[%emt 0:00:16]} d5 {[%emt 0:
00:08]} 3. e5 {[%emt 0:00:07]} Bf5 {[%emt 0:00:36]} 4. c4 {[%emt 0:00:21]} e6 {
[%emt 0:01:33]} 5. Nc3 {[%emt 0:00:08]} h6 {[%emt 0:05:21]} 6. Nge2 {[%emt 0:
03:21]} Ne7 {[%emt 0:01:17]} 7. Ng3 {[%emt 0:01:49]} Bh7 {[%emt 0:03:31]} 8.
Be3 {[%emt 0:01:26]} Nd7 {[%emt 0:01:42]} 9. c5 {[%emt 0:05:39]} b6 {[%emt 0:
09:57]} 10. b4 {[%emt 0:00:57]} bxc5 {[%emt 0:05:22]} 11. bxc5 {[%emt 0:00:22]}
Qa5 {[%emt 0:04:46]} 12. Qd2 {[%emt 0:03:33]} Nf5 {[%emt 0:00:51]} 13. Nxf5 {
[%emt 0:04:21]} Bxf5 {[%emt 0:00:53]} 14. Be2 {[%emt 0:00:48]} Be7 {[%emt 0:03:
35]} 15. O-O {[%emt 0:02:14]} Rb8 {[%emt 0:01:16]} 16. g4 {[%emt 0:12:10]} Bh7
{[%emt 0:01:51]} 17. f4 {[%emt 0:00:44]} h5 {[%emt 0:11:05]} 18. f5 {[%emt 0:
02:16]} hxg4 {[%emt 0:03:51]} 19. fxe6 {[%emt 0:32:18]} fxe6 {[%emt 0:04:55]}
20. Nxd5 {[%emt 0:01:39]} Qxd2 {[%emt 0:16:19]} 21. Nc7+ {[%emt 0:00:33]} Kd8 {
[%emt 0:00:04]} 22. Nxe6+ {[%emt 0:00:08]} Ke8 {[%emt 0:00:02]} 23. Nxg7+ {
[%emt 0:02:37]} Kd8 {[%emt 0:00:04]} 24. Ne6+ {[%emt 0:01:09]} Ke8 {[%emt 0:00:
05]} 25. Bxd2 {[%emt 0:04:10]} Bh4 {[%emt 0:01:15]} 26. Bxg4 {[%emt 0:07:25]}
Rg8 {[%emt 0:00:11]} 27. h3 {[%emt 0:00:15]} Rb2 {[%emt 0:00:26]} 28. Be1 {
[%emt 0:01:01]} Be4 {[%emt 0:05:36]} 29. Nc7+ {[%emt 0:00:33]} Kd8 {[%emt 0:00:
05]} 30. Bxh4+ {[%emt 0:00:29]} Kxc7 {[%emt 0:00:04]} 31. Rf2 {[%emt 0:00:26]}
Rxf2 {[%emt 0:01:31]} 32. Kxf2 {[%emt 0:00:07]} Rf8+ {[%emt 0:01:45]} 33. Ke3 {
[%emt 0:00:29]} Bd5 {[%emt 0:00:38]} 34. Be7 {[%emt 0:00:17]} Rg8 {[%emt 0:01:
15]} 35. Bd6+ {[%emt 0:00:07]} Kd8 {[%emt 0:00:06]} 36. Rb1 {[%emt 0:00:08]}
1-0